[Event "Icelandic Open 2019"]
[Site "Akureyri"]
[Date "2019.05.26"]
[Round "3.4"]
[White "Gislason, Gudmundur"]
[Black "Steingrimsson, Hedinn"]
[Result "1-0"]
[ECO "A07"]
[WhiteElo "2288"]
[BlackElo "2549"]
[Annotator "RC"]
[PlyCount "83"]
[EventDate "2019.05.25"]
[EventType "swiss"]
[EventCountry "ISL"]
[SourceTitle "playchess.com"]
[Source "ChessBase"]
[SourceQuality "1"]
[TimeControl "40/5400+30:1800+30"]

1. Nf3 {[%emt 0:00:00]} d5 {[%emt 0:03:31]} 2. g3 {[%emt 0:00:00]} Nf6 {[%emt 0:00:25]} 3. Bg2 {[%emt 0:00:00]} Bf5 {[%emt 0:00:14]} 4. d3 {[%emt 0:00:31]} e6 {[%emt 0:00:32]} 5. h3 {[%emt 0:01:00]} h6 {[%emt 0:00:17]} 6. Nbd2 {[%emt 0:05:36]} Be7 {[%emt 0:04:51]} 7. O-O {[%emt 0:02:09]} Bh7 {[%emt 0:01:32]} 8. c4 {[%emt 0:04:23]} c6 {[%emt 0:07:53]} 9. cxd5 {[%emt 0:04:43]} exd5 {[%emt 0:03:06]} 10. Nb3 {[%emt 0:00:18]} O-O {[%emt 0:04:42]} 11. Bd2 {[%emt 0:02:35]} a5 {[%emt 0:06:09]} 12. a4 {[%emt 0:06:39]} Re8 {[%emt 0:06:14]} 13. Rc1 {[%emt 0:09:54]} Bb4 {[%emt 0:03:52]} 14. Nfd4 {[%emt 0:09:05]} Ra7 {[%emt 0:12:36]} 15. g4 {[%emt 0:04:40]} Qd6 {[%emt 0:13:13]} 16. f4 {[%emt 0:09:58]} b6 {[%emt 0:01:22]} 17. Kh1 {[%emt 0:08:13]} Rae7 {[%emt 0:02:43]} 18. Rf2 {[%emt 0:10:27]} c5 {[%emt 0:00:27]} 19. Nb5 {[%emt 0:01:54]} Qd7 {[%emt 0:00:04]} 20. f5 {[%emt 0:02:44]} Bxd2 {[%emt 0:09:29]} 21. Nxd2 {[%emt 0:00:31]} d4 {[%emt 0:02:40]} 22. Nc4 {[%emt 0:08:55]} Nd5 {[%emt 0:02:01]} 23. Nbd6 {[%emt 0:03:28]} Ne3 {[%emt 0:00:53]} 24. Qb3 {[%emt 0:00:37]} Nxg2 {[%emt 0:07:56]} 25. Nxe8 {[%emt 0:00:11]} Nh4 {[%emt 0:00:13]} 26. Ned6 {[%emt 0:00:30]} Qc6+ {[%emt 0:00:01]} 27. Ne4 {[%emt 0:00:42]} Nd7 {[%emt 0:01:14]} 28. Qb5 {[%emt 0:00:40]} Qc7 {[%emt 0:00:26]} 29. Ncd6 {[%emt 0:00:55]} Kh8 {[%emt 0:00:25]} 30. Qc4 {[%emt 0:00:42]} Bg8 {[%emt 0:00:16]} 31. Qxd4 {[%emt 0:00:32]} f6 {[%emt 0:00:13]} 32. Nb5 {[%emt 0:01:26]} Qb7 {[%emt 0:00:56]} 33. Qe3 {[%emt 0:00:10]} c4 {[%emt 0:04:20]} 34. Nbd6 {[%emt 0:01:01]} Qc6 {[%emt 0:00:14]} 35. Qg3 {[%emt 0:00:45]} Nc5 {[%emt 0:01:02]} 36. Kh2 {[%emt 0:00:40]} Nxe4 {[%emt 0:01:04]} 37. Nxe4 {[%emt 0:00:08]} Rxe4 {[%emt 0:00:07]} 38. dxe4 {[%emt 0:00:13]} Qxe4 {[%emt 0:00:03]} 39. Qxh4 {[%emt 0:00:28]} Qe3 {[%emt 0:01:20]} 40. Rd1 {[%emt 0:00:00]} Qe5+ {[%emt 0:00:00]} 41. Qg3 {[%emt 0:00:57]} Qxb2 {[%emt 0:00:40]} 42. Rd8 {[%emt 0:00:14]} 1-0

[Event "Icelandic Open 2019"]
[Site "Akureyri"]
[Date "2019.05.26"]
[Round "3.8"]
[White "Petursson, Gudni"]
[Black "Jonsson, Stefan G"]
[Result "1-0"]
[ECO "A10"]
[WhiteElo "2045"]
[BlackElo "1568"]
[Annotator "NA RC"]
[PlyCount "69"]
[EventDate "2019.05.25"]
[EventType "swiss"]
[EventCountry "ISL"]
[SourceTitle "playchess.com"]
[Source "ChessBase"]
[SourceQuality "1"]
[TimeControl "40/5400+30:1800+30"]

1. c4 {[%emt 0:00:00]} f5 {[%emt 0:00:00]} 2. g3 {[%emt 0:00:19]} Nf6 {[%emt 0:00:00]} 3. Bg2 {[%emt 0:00:06]} e6 {[%emt 0:00:01]} 4. b3 {[%emt 0:00:43]} Be7 {[%emt 0:00:14]} 5. Bb2 {[%emt 0:00:07]} O-O {[%emt 0:00:10]} 6. Nf3 {[%emt 0:00:32]} c6 {[%emt 0:00:36]} 7. O-O {[%emt 0:00:09]} a5 {[%emt 0:00:18]} 8. a3 {[%emt 0:00:16]} d6 {[%emt 0:01:44]} 9. d4 {[%emt 0:00:32]} Qc7 {[%emt 0:02:58]} 10. Nc3 {[%emt 0:00:51]} Bd7 {[%emt 0:04:49]} 11. Rc1 {[%emt 0:02:01]} Rd8 {[%emt 0:03:09]} 12. Qc2 {[%emt 0:00:23]} c5 {[%emt 0:03:38]} 13. e4 {[%emt 0:00:28]} fxe4 {[%emt 0:03:16]} 14. Nxe4 {[%emt 0:02:47]} cxd4 {[%emt 0:03:40]} 15. Nxd4 {[%emt 0:00:46]} e5 {[%emt 0:02:01]} 16. Nxf6+ {[%emt 0:01:44]} Bxf6 {[%emt 0:00:33]} 17. Bd5+ {[%emt 0:00:39]} Kh8 {[%emt 0:01:12]} 18. Nb5 {[%emt 0:01:35]} Qb6 {[%emt 0:01:59]} 19. a4 {[%emt 0:00:42]} Na6 {[%emt 0:00:41]} 20. Kg2 {[%emt 0:05:03]} Rac8 {[%emt 0:02:05]} 21. Ba3 {[%emt 0:00:43]} Nc5 {[%emt 0:04:45]} 22. f4 {[%emt 0:01:26]} Bc6 {[%emt 0:04:39]} 23. Rcd1 {[%emt 0:00:26]} Re8 {[%emt 0:01:53]} 24. Nxd6 {[%emt 0:00:43]} Qxb3 {[%emt 0:03:51]} 25. Qxb3 {[%emt 0:00:13]} Nxb3 {[%emt 0:00:07]} 26. Nxe8 {[%emt 0:00:26]} Rxe8 {[%emt 0:03:46]} 27. Bxc6 {[%emt 0:00:08]} bxc6 {[%emt 0:00:10]} 28. fxe5 {[%emt 0:00:40]} Rxe5 {[%emt 0:05:38]} 29. Rfe1 {[%emt 0:00:52]} Rxe1 {[%emt 0:01:58]} 30. Rxe1 {[%emt 0:00:03]} h6 {[%emt 0:00:11]} 31. Re8+ {[%emt 0:00:44]} Kh7 {[%emt 0:00:08]} 32. Rc8 {[%emt 0:00:25]} Nd4 {[%emt 0:01:17]} 33. Bb2 {[%emt 0:00:24]} c5 {[%emt 0:01:50]} 34. Rxc5 {[%emt 0:00:36]} Nb3 {[%emt 0:00:01]} 35. Rb5 {[%emt 0:00:13]} 1-0

[Event "Icelandic Open 2019"]
[Site "Akureyri"]
[Date "2019.05.26"]
[Round "3.9"]
[White "Sigurdarson, Tomas Veigar"]
[Black "Pupols, Viktors"]
[Result "1/2-1/2"]
[ECO "B13"]
[WhiteElo "1994"]
[BlackElo "2023"]
[Annotator "NA RC"]
[PlyCount "69"]
[EventDate "2019.05.25"]
[EventType "swiss"]
[EventCountry "ISL"]
[SourceTitle "playchess.com"]
[Source "ChessBase"]
[SourceQuality "1"]
[TimeControl "40/5400+30:1800+30"]

1. e4 {[%emt 0:00:00]} c6 {[%emt 0:00:00]} 2. d4 {[%emt 0:00:00]} d5 {[%emt 0:00:00]} 3. exd5 {[%emt 0:00:00]} cxd5 {[%emt 0:00:00]} 4. Bd3 {[%emt 0:00:00]} Nc6 {[%emt 0:00:00]} 5. c3 {[%emt 0:00:09]} Nf6 {[%emt 0:00:20]} 6. Bf4 {[%emt 0:00:14]} Bg4 {[%emt 0:01:31]} 7. Qb3 {[%emt 0:00:07]} Qc8 {[%emt 0:00:04]} 8. Nd2 {[%emt 0:00:26]} e6 {[%emt 0:00:23]} 9. Ngf3 {[%emt 0:00:28]} Be7 {[%emt 0:00:30]} 10. O-O {[%emt 0:00:33]} O-O {[%emt 0:00:22]} 11. Ne5 {[%emt 0:07:38]} Bh5 {[%emt 0:09:00]} 12. Ndf3 {[%emt 0:05:42]} Nxe5 {[%emt 0:08:24]} 13. Nxe5 {[%emt 0:01:43]} Bg6 {[%emt 0:11:27]} 14. Qc2 {[%emt 0:01:27]} Bxd3 {[%emt 0:03:52]} 15. Qxd3 {[%emt 0:00:22]} Ne4 {[%emt 0:01:53]} 16. f3 {[%emt 0:03:43]} Nd6 {[%emt 0:01:01]} 17. Rfe1 {[%emt 0:02:59]} Nc4 {[%emt 0:01:48]} 18. Re2 {[%emt 0:03:06]} Nxe5 {[%emt 0:02:20]} 19. Rxe5 {[%emt 0:01:59]} Re8 {[%emt 0:12:20]} 20. Rh5 {[%emt 0:01:05]} g6 {[%emt 0:00:06]} 21. Rh3 {[%emt 0:00:18]} Qd7 {[%emt 0:06:26]} 22. Qe3 {[%emt 0:02:08]} f6 {[%emt 0:01:00]} 23. Re1 {[%emt 0:03:42]} Bf8 {[%emt 0:04:19]} 24. g4 {[%emt 0:07:22]} Rac8 {[%emt 0:06:50]} 25. Kg2 {[%emt 0:00:32]} e5 {[%emt 0:01:42]} 26. dxe5 {[%emt 0:02:32]} fxe5 {[%emt 0:00:09]} 27. Bxe5 {[%emt 0:01:47]} Bg7 {[%emt 0:02:53]} 28. Qg5 {[%emt 0:01:39]} Bxe5 {[%emt 0:01:28]} 29. Rxe5 {[%emt 0:02:03]} Rxe5 {[%emt 0:00:04]} 30. Qxe5 {[%emt 0:00:07]} Re8 {[%emt 0:00:02]} 31. Qf4 {[%emt 0:00:50]} Re2+ {[%emt 0:00:28]} 32. Kg3 {[%emt 0:00:14]} Rxb2 {[%emt 0:02:00]} 33. Qb8+ {[%emt 0:00:10]} Kg7 {[%emt 0:00:20]} 34. Qe5+ {[%emt 0:00:07]} Kg8 {[%emt 0:00:16]} 35. Qb8+ {[%emt 0:00:10]} 1/2-1/2

[Event "Icelandic Open 2019"]
[Site "Akureyri"]
[Date "2019.05.26"]
[Round "3.11"]
[White "Finnbogadottir, Tinna Kristin"]
[Black "Sarkar, Justin"]
[Result "0-1"]
[ECO "C21"]
[WhiteElo "1855"]
[BlackElo "2358"]
[Annotator "NA RC"]
[PlyCount "69"]
[EventDate "2019.05.25"]
[EventType "swiss"]
[EventCountry "ISL"]
[SourceTitle "playchess.com"]
[Source "ChessBase"]
[SourceQuality "1"]
[TimeControl "40/5400+30:1800+30"]

1. e4 {[%emt 0:00:00]} e5 {[%emt 0:00:36]} 2. d4 {[%emt 0:00:00]} exd4 {[%emt 0:00:07]} 3. Nf3 {[%emt 0:00:00]} Bb4+ {[%emt 0:01:29]} 4. c3 {[%emt 0:04:51]} dxc3 {[%emt 0:00:06]} 5. bxc3 {[%emt 0:00:05]} Bc5 {[%emt 0:01:10]} 6. Bc4 {[%emt 0:00:51]} d6 {[%emt 0:01:48]} 7. Ng5 {[%emt 0:14:20]} Nh6 {[%emt 0:01:05]} 8. O-O {[%emt 0:01:00]} Nc6 {[%emt 0:00:55]} 9. Bf4 {[%emt 0:04:29]} Ne5 {[%emt 0:01:56]} 10. Bxe5 {[%emt 0:04:30]} Qxg5 {[%emt 0:00:20]} 11. Bd4 {[%emt 0:00:10]} Ng4 {[%emt 0:04:14]} 12. Nd2 {[%emt 0:08:43]} Qf4 {[%emt 0:17:09]} 13. Nf3 {[%emt 0:01:32]} O-O {[%emt 0:01:15]} 14. Qd3 {[%emt 0:05:45]} Nf6 {[%emt 0:04:52]} 15. Bxc5 {[%emt 0:03:59]} dxc5 {[%emt 0:00:07]} 16. e5 {[%emt 0:00:57]} Bf5 {[%emt 0:02:31]} 17. Qe2 {[%emt 0:05:53]} Ne4 {[%emt 0:01:03]} 18. Rac1 {[%emt 0:02:40]} Rad8 {[%emt 0:02:05]} 19. g3 {[%emt 0:01:19]} Qg4 {[%emt 0:00:50]} 20. Rfd1 {[%emt 0:04:54]} Rxd1+ {[%emt 0:02:00]} 21. Qxd1 {[%emt 0:01:32]} Nxf2 {[%emt 0:01:04]} 22. Bxf7+ {[%emt 0:00:14]} Rxf7 {[%emt 0:00:12]} 23. Kxf2 {[%emt 0:01:58]} Be4 {[%emt 0:00:15]} 24. e6 {[%emt 0:05:10]} Rxf3+ {[%emt 0:00:15]} 25. Kg1 {[%emt 0:00:20]} Rxg3+ {[%emt 0:00:09]} 26. hxg3 {[%emt 0:00:12]} Qxg3+ {[%emt 0:00:05]} 27. Kf1 {[%emt 0:00:22]} Bg2+ {[%emt 0:02:11]} 28. Ke2 {[%emt 0:00:18]} Bf3+ {[%emt 0:00:06]} 29. Kf1 {[%emt 0:00:19]} Qg2+ {[%emt 0:00:41]} 30. Ke1 {[%emt 0:00:07]} Qg1+ {[%emt 0:00:09]} 31. Kd2 {[%emt 0:00:07]} Qf2+ {[%emt 0:00:10]} 32. Kd3 {[%emt 0:00:17]} Bxd1 {[%emt 0:00:21]} 33. Rxd1 {[%emt 0:00:05]} c4+ {[%emt 0:00:04]} 34. Ke4 {[%emt 0:00:19]} Qe2+ {[%emt 0:00:07]} 35. Kd4 {[%emt 0:00:12]} 0-1

[Event "Icelandic Open 2019"]
[Site "Akureyri"]
[Date "2019.05.26"]
[Round "3.12"]
[White "Thorhallsson, Simon"]
[Black "Eiriksson, Sigurdur"]
[Result "1-0"]
[ECO "E81"]
[WhiteElo "2184"]
[BlackElo "1811"]
[Annotator "NA"]
[PlyCount "39"]
[EventDate "2019.05.25"]
[EventType "swiss"]
[EventCountry "ISL"]
[SourceTitle "playchess.com"]
[Source "ChessBase"]
[SourceQuality "1"]
[TimeControl "40/5400+30:1800+30"]

1. d4 {[%emt 0:00:00]} Nf6 {[%emt 0:00:00]} 2. c4 {[%emt 0:00:00]} g6 {[%emt 0:00:09]} 3. f3 {[%emt 0:00:00]} Bg7 {[%emt 0:00:13]} 4. e4 {[%emt 0:00:00]} d6 {[%emt 0:00:10]} 5. Nc3 {[%emt 0:00:00]} O-O {[%emt 0:00:08]} 6. Be3 {[%emt 0:00:00]} a6 {[%emt 0:00:11]} 7. Qd2 {[%emt 0:00:06]} c6 {[%emt 0:01:18]} 8. Nge2 {[%emt 0:00:47]} b5 {[%emt 0:00:20]} 9. Nf4 {[%emt 0:07:40]} e5 {[%emt 0:04:27]} 10. dxe5 {[%emt 0:02:44]} dxe5 {[%emt 0:00:36]} 11. Qxd8 {[%emt 0:00:15]} Rxd8 {[%emt 0:00:13]} 12. Nd3 {[%emt 0:00:12]} Be6 {[%emt 0:04:53]} 13. Nc5 {[%emt 0:03:57]} Bxc4 {[%emt 0:05:17]} 14. Bxc4 {[%emt 0:00:42]} bxc4 {[%emt 0:00:09]} 15. N3a4 {[%emt 0:01:07]} Nbd7 {[%emt 0:01:19]} 16. O-O-O {[%emt 0:00:19]} Nxc5 {[%emt 0:02:41]} 17. Nxc5 {[%emt 0:00:19]} Bf8 {[%emt 0:02:20]} 18. Kc2 {[%emt 0:01:13]} Bxc5 {[%emt 0:01:47]} 19. Bxc5 {[%emt 0:00:06]} Nd7 {[%emt 0:01:26]} 20. Be7 {[%emt 0:00:07]} 1-0

[Event "Icelandic Open 2019"]
[Site "Akureyri"]
[Date "2019.05.26"]
[Round "3.13"]
[White "Ptacnikova, Lenka"]
[Black "Leosson, Atli Johann"]
[Result "1-0"]
[ECO "C68"]
[WhiteElo "2145"]
[BlackElo "1790"]
[Annotator "NA RC"]
[PlyCount "83"]
[EventDate "2019.05.25"]
[EventType "swiss"]
[EventCountry "ISL"]
[SourceTitle "playchess.com"]
[Source "ChessBase"]
[SourceQuality "1"]
[TimeControl "40/5400+30:1800+30"]

1. e4 {[%emt 0:00:00]} e5 {[%emt 0:00:00]} 2. Nf3 {[%emt 0:00:00]} Nc6 {[%emt 0:00:00]} 3. Bb5 {[%emt 0:00:00]} a6 {[%emt 0:00:03]} 4. Bxc6 {[%emt 0:00:03]} dxc6 {[%emt 0:00:19]} 5. Nc3 {[%emt 0:00:10]} Bd6 {[%emt 0:01:27]} 6. d4 {[%emt 0:00:38]} Qe7 {[%emt 0:05:14]} 7. dxe5 {[%emt 0:06:05]} Bxe5 {[%emt 0:00:18]} 8. Nxe5 {[%emt 0:00:35]} Qxe5 {[%emt 0:00:12]} 9. Be3 {[%emt 0:06:46]} Nf6 {[%emt 0:09:51]} 10. Qd4 {[%emt 0:08:04]} Qxd4 {[%emt 0:11:05]} 11. Bxd4 {[%emt 0:00:04]} Be6 {[%emt 0:02:36]} 12. O-O-O {[%emt 0:05:20]} O-O-O {[%emt 0:01:08]} 13. f3 {[%emt 0:01:11]} Rhg8 {[%emt 0:07:15]} 14. Rd2 {[%emt 0:04:15]} Nd7 {[%emt 0:10:48]} 15. Rhd1 {[%emt 0:00:33]} f6 {[%emt 0:00:37]} 16. Ne2 {[%emt 0:03:31]} c5 {[%emt 0:11:57]} 17. Be3 {[%emt 0:02:52]} b6 {[%emt 0:00:17]} 18. Nf4 {[%emt 0:01:16]} Bf7 {[%emt 0:00:22]} 19. Nd5 {[%emt 0:01:14]} Bxd5 {[%emt 0:01:51]} 20. Rxd5 {[%emt 0:00:12]} Ne5 {[%emt 0:01:32]} 21. Bf4 {[%emt 0:02:46]} Ng6 {[%emt 0:01:43]} 22. Bg3 {[%emt 0:00:25]} Rxd5 {[%emt 0:03:17]} 23. Rxd5 {[%emt 0:00:20]} Re8 {[%emt 0:01:36]} 24. Kd2 {[%emt 0:01:19]} Ne7 {[%emt 0:01:10]} 25. Rd3 {[%emt 0:00:55]} Nc6 {[%emt 0:00:19]} 26. c3 {[%emt 0:01:37]} Ne5 {[%emt 0:03:18]} 27. Bxe5 {[%emt 0:00:04]} Rxe5 {[%emt 0:00:49]} 28. Ke3 {[%emt 0:04:08]} Re7 {[%emt 0:03:32]} 29. Kf4 {[%emt 0:03:26]} g6 {[%emt 0:02:59]} 30. g4 {[%emt 0:02:09]} h6 {[%emt 0:03:36]} 31. Rd5 {[%emt 0:05:46]} Re6 {[%emt 0:02:28]} 32. h4 {[%emt 0:02:21]} c6 {[%emt 0:00:52]} 33. Rd2 {[%emt 0:00:48]} Kc7 {[%emt 0:00:16]} 34. h5 {[%emt 0:02:30]} gxh5 {[%emt 0:02:40]} 35. Kf5 {[%emt 0:00:56]} Re5+ {[%emt 0:04:29]} 36. Kxf6 {[%emt 0:00:07]} Rg5 {[%emt 0:00:11]} 37. gxh5 {[%emt 0:01:04]} Rxh5 {[%emt 0:00:11]} 38. e5 {[%emt 0:01:05]} Rh3 {[%emt 0:01:05]} 39. f4 {[%emt 0:02:00]} b5 {[%emt 0:00:23]} 40. e6 {[%emt 0:00:00]} Re3 {[%emt 0:00:00]} 41. e7 {[%emt 0:01:09]} a5 {[%emt 0:00:57]} 42. Rd8 {[%emt 0:00:46]} 1-0

[Event "Icelandic Open 2019"]
[Site "Akureyri"]
[Date "2019.05.26"]
[Round "3.14"]
[White "Hardarson, Petur Palmi"]
[Black "Karlsson, Mikael Johann"]
[Result "1/2-1/2"]
[ECO "D52"]
[WhiteElo "1847"]
[BlackElo "2146"]
[Annotator "NA RC"]
[PlyCount "133"]
[EventDate "2019.05.25"]
[EventType "swiss"]
[EventCountry "ISL"]
[SourceTitle "playchess.com"]
[Source "ChessBase"]
[SourceQuality "1"]
[TimeControl "40/5400+30:1800+30"]

1. d4 {[%emt 0:00:01]} Nf6 {[%emt 0:00:00]} 2. c4 {[%emt 0:00:14]} e6 {[%emt 0:00:00]} 3. Nf3 {[%emt 0:00:19]} d5 {[%emt 0:00:44]} 4. Nc3 {[%emt 0:00:34]} c6 {[%emt 0:00:06]} 5. Bg5 {[%emt 0:00:50]} Nbd7 {[%emt 0:00:05]} 6. e3 {[%emt 0:00:32]} Qa5 {[%emt 0:00:12]} 7. cxd5 {[%emt 0:03:29]} Nxd5 {[%emt 0:00:09]} 8. Rc1 {[%emt 0:00:38] D52: Queen's Gambit Declined: Cambridge Springs Variation} Bb4 {[%emt 0:01:43]} (8... Nxc3 9. bxc3 Ba3 10. Rc2 b6 11. Be2 Ba6 12. O-O Bxe2 13. Rxe2 O-O 14. Qc2 c5 15. d5 exd5 {½-½ (68) Yu,Y (2764)-Dreev,A (2670) chess.com INT 2019}) 9. a3 {[%emt 0:00:53]} Bxc3+ {[%emt 0:02:08]} 10. bxc3 {[%emt 0:00:12]} Qxa3 {[%emt 0:00:12]} 11. Qc2 {[%emt 0:03:42]} h6 {[%emt 0:01:46]} 12. Bh4 {[%emt 0:00:42]} c5 $146 {[%emt 0:02:48]} ({Predecessor:} 12... O-O 13. Bd3 Re8 14. Bg3 b6 15. e4 N5f6 {½-½ (28) Oatlhotse,P (2226)-Gaealafshwe,B (2161) Gaborone 2010}) 13. Be2 {[%emt 0:10:01]} cxd4 {[%emt 0:03:27]} 14. cxd4 {[%emt 0:00:43]} Qa5+ {[%emt 0:02:56]} 15. Nd2 {[%emt 0:00:59]} O-O {[%emt 0:00:05]} 16. O-O {[%emt 0:00:46]} b5 {[%emt 0:01:44]} 17. Ra1 {[%emt 0:21:40]} Qb6 {[%emt 0:13:25]} 18. Rfb1 {[%emt 0:02:07]} Ba6 {[%emt 0:09:52]} 19. Rb3 {[%emt 0:09:03]} Rfc8 {[%emt 0:05:26]} 20. Qb2 {[%emt 0:03:11]} Rab8 {[%emt 0:03:48]} 21. Bg3 {[%emt 0:06:53]} e5 {[%emt 0:01:59]} 22. Rba3 {[%emt 0:06:19]} Nc3 {[%emt 0:12:23]} 23. Bg4 {[%emt 0:03:23]} Na4 {[%emt 0:01:14]} 24. Qb4 {[%emt 0:03:30]} Rd8 {[%emt 0:02:19]} 25. Bxd7 {[%emt 0:08:02]} Rxd7 {[%emt 0:00:39]} 26. Nf3 {[%emt 0:01:23]} e4 {[%emt 0:02:22]} 27. Bxb8 {[%emt 0:01:07]} exf3 {[%emt 0:00:04]} 28. Bg3 {[%emt 0:00:33]} Qg6 {[%emt 0:03:50]} 29. Rc1 {[%emt 0:02:07]} h5 {[%emt 0:00:50]} 30. h4 {[%emt 0:01:15]} fxg2 {[%emt 0:01:59]} 31. Qa5 {[%emt 0:02:40]} Kh7 {[%emt 0:04:33]} 32. Raa1 {[%emt 0:00:59]} Qe6 {[%emt 0:01:39]} 33. Rc7 {[%emt 0:01:46]} Qh3 {[%emt 0:00:59]} 34. Bh2 {[%emt 0:00:06] [#]} Bb7 $1 {[%emt 0:02:18]} 35. Rxd7 {[%emt 0:01:04]} Qxd7 {[%emt 0:00:04]} 36. Qxa7 {[%emt 0:01:02]} Nc3 {[%emt 0:00:54]} 37. Re1 {[%emt 0:01:04] [#]} Ne4 $1 {[%emt 0:02:05]} 38. Qa2 {[%emt 0:02:08]} Qf5 {[%emt 0:02:08]} 39. Qe2 {[%emt 0:01:01]} Nc3 {[%emt 0:01:56]} 40. Qd2 {[%emt 0:00:00]} b4 {[%emt 0:00:00]} 41. Qb2 {[%emt 0:08:07]} Ne4 {[%emt 0:19:51]} 42. f3 {[%emt 0:07:53]} Qxf3 {[%emt 0:00:05]} 43. Qxg2 {[%emt 0:00:46]} Qxg2+ {[%emt 0:00:14]} (43... Nd2 $2 44. Qxf3 Nxf3+ 45. Kf2 $19) 44. Kxg2 {[%emt 0:00:09]} Nc3+ $2 {[%emt 0:00:03]} (44... b3 $19 45. d5 f6) 45. d5 {[%emt 0:06:27]} Bxd5+ {[%emt 0:01:26]} 46. Kg1 {[%emt 0:03:14]} f6 {[%emt 0:02:57]} 47. Bd6 {[%emt 0:00:37]} b3 $15 {[%emt 0:00:04]} 48. Ba3 {[%emt 0:00:24]} Bf3 {[%emt 0:01:01]} 49. Kf2 {[%emt 0:02:13]} Bg4 {[%emt 0:02:59]} 50. Kg3 {[%emt 0:03:40]} Nd1 {[%emt 0:02:43]} 51. Kf4 {[%emt 0:00:26]} Kh6 {[%emt 0:01:12]} 52. e4 {[%emt 0:00:53]} g5+ {[%emt 0:02:17]} 53. Kg3 {[%emt 0:00:40]} Kg6 {[%emt 0:05:27]} 54. e5 {[%emt 0:00:58]} fxe5 {[%emt 0:01:20]} 55. Rxe5 {[%emt 0:00:12]} gxh4+ {[%emt 0:05:09]} 56. Kxh4 {[%emt 0:00:12]} Nf2 {[%emt 0:01:04]} 57. Rb5 {[%emt 0:00:58]} Bd1 {[%emt 0:00:11]} 58. Bb2 {[%emt 0:01:56]} Nd3 {[%emt 0:00:34]} 59. Bc3 {[%emt 0:00:14]} Kf7 {[%emt 0:01:13]} 60. Rb6 {[%emt 0:00:35]} Ke7 {[%emt 0:00:15]} 61. Bd4 {[%emt 0:00:19]} Kd7 {[%emt 0:00:38]} 62. Kg5 {[%emt 0:00:22]} Kc7 {[%emt 0:00:18]} 63. Kh4 {[%emt 0:00:30]} Ne1 {[%emt 0:02:37]} 64. Bf2 {[%emt 0:01:37]} Nd3 {[%emt 0:00:30]} 65. Bd4 {[%emt 0:00:12]} Ne5 {[%emt 0:01:25]} 66. Rxb3 {[%emt 0:01:23]} Nf3+ {[%emt 0:00:20]} 67. Rxf3 {[%emt 0:00:15]} 1/2-1/2